bitfinex/quotes_BTCUSD_20250110
["timestamp","ask_amount","ask_price","bid_price","bid_amount"]
[1736550423312,0.210968,94801.0,94788.0,0.10429976]
[1736550425080,0.210968,94801.0,94788.0,0.10529976]
[1736550425546,0.210968,94801.0,94789.0,0.00790864]
[1736550425810,0.00660268,94800.0,94789.0,0.1122084]
[1736550427040,0.00660268,94800.0,94790.0,0.00790864]
[1736550428040,0.00660268,94800.0,94791.0,0.00790864]
[1736550428547,0.00660268,94800.0,94790.0,0.001]
[1736550429027,0.00660268,94800.0,94789.0,0.10429976]
[1736550429424,0.00660268,94800.0,94791.0,0.0079092]
[1736550430237,0.210972,94799.0,94791.0,0.0079092]
[1736550430451,0.210972,94799.0,94791.0,0.0089092]
[1736550430658,0.00659813,94798.0,94792.0,0.0079092]
[1736550432211,0.00659813,94798.0,94792.0,0.0089092]
[1736550432438,0.00659813,94798.0,94793.0,0.0079092]
[1736550433367,0.421955,94797.0,94793.0,0.0079092]
[1736550433637,0.421955,94797.0,94794.0,0.0079092]
[1736550433638,0.210981,94795.0,94794.0,0.0079092]
[1736550434084,0.21757452,94795.0,94794.0,0.0079092]
[1736550434715,0.21757452,94795.0,94779.0,8.54e-05]
[1736550434929,0.42855652,94795.0,94780.0,0.31531376]
[1736550435533,0.21099,94791.0,94780.0,0.31531376]
[1736550435735,0.0065985,94790.0,94781.0,0.00791281]
[1736550435971,0.0065985,94790.0,94782.0,0.10429976]
[1736550436918,0.001,94790.0,94783.0,0.00791281]
[1736550437121,0.00658785,94789.0,94783.0,0.00791281]
[1736550437534,0.001,94790.0,94783.0,0.00791281]
[1736550437713,0.00658734,94788.0,94783.0,0.00791281]
[1736550437943,0.00658785,94789.0,94783.0,0.00791281]
[1736550438118,0.001,94790.0,94784.0,0.00791281]
[1736550438325,0.00658734,94788.0,94784.0,0.00791281]
[1736550438556,0.00658785,94789.0,94784.0,0.00791281]
[1736550438732,0.00658683,94787.0,94784.0,0.00791281]
[1736550438936,0.00658734,94788.0,94784.0,0.00791281]
[1736550439142,0.001,94789.0,94784.0,0.00791281]
[1736550439351,0.00658734,94788.0,94785.0,0.00791281]
[1736550439560,0.22145964,94792.0,94785.0,0.00791281]
[1736550439768,0.001,94788.0,94785.0,0.00791281]
[1736550439967,0.00878244,94787.0,94785.0,0.08901281]
[1736550440121,0.00878244,94787.0,94786.0,0.00791281]
[1736550440551,0.22145964,94792.0,94786.0,0.00791281]
[1736550440755,0.00878281,94791.0,94786.0,0.00791281]
[1736550441280,0.210992,94790.0,94786.0,0.00991281]
[1736550441412,0.210992,94790.0,94787.0,0.00791281]
[1736550441623,0.00878143,94789.0,94787.0,0.00791281]
[1736550442333,0.00878143,94789.0,94788.0,0.10429976]
[1736550442552,0.00878143,94789.0,94788.0,0.31529676]
[1736550442727,0.210977,94798.0,94788.0,0.31529676]
[1736550442937,0.210977,94798.0,94788.0,0.32320957]
[1736550443241,0.001,94789.0,94788.0,0.32320957]
[1736550443459,0.00878297,94797.0,94794.0,0.0811]
[1736550443707,0.00014814,94802.0,94796.0,0.210979]
[1736550443917,0.00014814,94802.0,94801.0,0.210968]
[1736550444127,0.00014814,94802.0,94801.0,0.31526776]
[1736550444762,0.00014814,94802.0,94801.0,0.44596776]
[1736550445113,0.00014814,94802.0,94801.0,0.45388057]
[1736550445521,0.00014814,94802.0,94801.0,0.45588057]
[1736550446732,0.00114814,94802.0,94801.0,0.55888057]
[1736550447116,0.00114814,94802.0,94801.0,0.59581634]
[1736550447536,0.00114814,94802.0,94801.0,0.60244579]
[1736550447914,0.00114814,94802.0,94801.0,0.56288057]
[1736550448123,0.00114814,94802.0,94801.0,0.60244579]
[1736550448490,0.00114814,94802.0,94801.0,0.88692207]
[1736550449106,0.00114814,94802.0,94801.0,0.94735685]
[1736550449331,0.00114814,94802.0,94801.0,0.70244579]
[1736550449772,0.00114814,94802.0,94801.0,0.66288057]
[1736550450045,0.00114814,94802.0,94801.0,0.70244579]
[1736550450929,0.00114814,94802.0,94801.0,0.66288057]
[1736550451124,0.00114814,94802.0,94801.0,0.70244579]
[1736550451533,0.00114814,94802.0,94801.0,0.85244579]
[1736550451929,0.00114814,94802.0,94801.0,0.81288057]
[1736550452143,0.00114814,94802.0,94801.0,1.17556219]
[1736550452345,0.00114814,94802.0,94801.0,1.18224579]
[1736550452553,0.00114814,94802.0,94801.0,1.14268057]
[1736550452755,0.00114814,94802.0,94801.0,1.17555093]
[1736550452956,0.00014814,94802.0,94801.0,1.20611615]
[1736550453162,0.00114814,94802.0,94801.0,1.17355093]
[1736550453376,0.00214814,94802.0,94801.0,1.18524579]
[1736550453575,0.00114814,94802.0,94801.0,1.17354187]
[1736550453837,0.00014814,94802.0,94801.0,1.17154187]
[1736550454045,0.00114814,94802.0,94801.0,1.21610709]
[1736550454255,0.00114814,94802.0,94801.0,1.17654187]
[1736550454458,0.00114814,94802.0,94801.0,1.13868057]
[1736550454666,0.00114814,94802.0,94801.0,1.17824579]
[1736550454919,0.00114814,94802.0,94801.0,1.13868057]
[1736550455120,0.00014814,94802.0,94801.0,1.13868057]
[1736550455347,0.00014814,94802.0,94801.0,1.17153258]
[1736550455656,0.00114814,94802.0,94801.0,1.18053258]
[1736550455866,0.00014814,94802.0,94801.0,1.13868057]
[1736550456012,0.00014814,94802.0,94801.0,1.17152582]
[1736550456213,0.00114814,94802.0,94801.0,1.14768057]
[1736550456448,0.00114814,94802.0,94801.0,1.14268057]
[1736550456671,0.00214814,94802.0,94801.0,1.14868057]
[1736550457081,0.00214814,94802.0,94801.0,1.33146893]
[1736550458683,0.0009975,94832.0,94830.0,0.210902]
[1736550458895,0.00114575,94832.0,94831.0,0.10429976]
[1736550459107,0.00014825,94832.0,94831.0,0.14170499]
[1736550461133,0.00014825,94832.0,94831.0,0.14270499]
[1736550461490,0.00014825,94832.0,94831.0,0.14470499]
[1736550462842,0.00014825,94832.0,94831.0,0.14270499]
[1736550463032,0.00014825,94832.0,94831.0,0.14170499]
[1736550463170,0.00014825,94832.0,94831.0,0.14270499]
[1736550463364,0.00014825,94832.0,94831.0,0.14570499]
[1736550467328,0.00014825,94832.0,94831.0,0.14675939]
[1736550468117,0.00014825,94832.0,94831.0,0.15463397]
[1736550469560,0.00014825,94832.0,94831.0,0.15357957]
[1736550480482,0.00014825,94832.0,94831.0,0.15463393]
[1736550483227,0.00014825,94832.0,94831.0,0.15357957]
[1736550493873,0.00014825,94832.0,94831.0,0.15463393]
[1736550497714,0.00014825,94832.0,94831.0,0.15357957]
[1736550499755,0.00014825,94832.0,94831.0,0.15463393]
[1736550500951,0.00014825,94832.0,94831.0,0.15363393]
[1736550501164,0.00014825,94832.0,94831.0,0.44025833]
[1736550501359,0.00014825,94832.0,94831.0,0.43920397]
[1736550501604,0.00014825,94832.0,94831.0,0.43620397]
[1736550501727,0.00114825,94832.0,94831.0,0.44320397]
[1736550502567,0.00114825,94832.0,94831.0,0.47617415]
[1736550503554,0.00114825,94832.0,94831.0,0.19254975]
[1736550503759,0.00114825,94832.0,94831.0,0.19360406]
[1736550504990,0.00114825,94832.0,94831.0,0.20424605]
[1736550505218,0.00114825,94832.0,94831.0,0.20319174]
[1736550506359,0.00114825,94832.0,94831.0,0.40319174]
[1736550507144,0.00114825,94832.0,94831.0,0.82131783]
[1736550508353,0.00114825,94832.0,94831.0,0.40319174]
[1736550509184,0.00114825,94832.0,94831.0,0.29254975]
[1736550509445,0.00114825,94832.0,94831.0,0.15957957]
[1736550512755,0.08174825,94832.0,94831.0,0.05527981]
[1736550513270,0.08833787,94832.0,94831.0,0.05527981]
[1736550518807,0.08833787,94832.0,94831.0,0.04740523]
[1736550520925,0.08833787,94832.0,94831.0,0.0553077]
[1736550523009,0.08833787,94832.0,94831.0,0.04740523]
[1736550523252,0.08174825,94832.0,94831.0,0.04740523]
[1736550523466,0.08833765,94832.0,94831.0,0.04740523]
[1736550523874,0.08833765,94832.0,94831.0,0.0553077]
[1736550526220,0.00773765,94832.0,94831.0,0.15960746]
[1736550526409,0.00114825,94832.0,94831.0,0.15960746]
[1736550527639,0.00114825,94832.0,94831.0,0.16066185]
[1736550528189,0.00114825,94832.0,94831.0,0.19358011]
[1736550528384,0.00114825,94832.0,94831.0,0.29358011]
[1736550528596,0.00114825,94832.0,94831.0,0.29252572]
[1736550529255,0.00114825,94832.0,94831.0,0.25512049]
[1736550530484,0.00083133,94832.0,94831.0,0.27669902]
[1736550531322,0.00083133,94832.0,94831.0,0.27668674]
[1736550532002,0.00083133,94832.0,94831.0,0.24378076]
[1736550532785,0.00083133,94832.0,94831.0,0.34378076]
[1736550533013,0.00083133,94832.0,94831.0,0.45976887]
[1736550533237,0.00083133,94832.0,94831.0,0.42268057]
[1736550533443,0.00083133,94832.0,94831.0,0.45976887]
[1736550533902,0.00083133,94832.0,94831.0,0.42268057]
[1736550534104,0.00083133,94832.0,94831.0,0.41968057]
[1736550534310,0.00083133,94832.0,94831.0,0.45976887]
[1736550534483,0.00083133,94832.0,94831.0,0.42268057]
[1736550534873,0.00083133,94832.0,94831.0,0.45976887]
[1736550535299,0.0001708,94840.0,94837.0,0.421776]
[1736550535502,0.00024895,94840.0,94839.0,0.210883]
[1736550535761,0.00024895,94840.0,94839.0,0.31518276]
[1736550536334,0.00024895,94840.0,94839.0,0.32308523]
[1736550536849,0.00024895,94840.0,94839.0,0.33508523]
[1736550536997,0.00024895,94840.0,94839.0,0.32608523]
[1736550537209,0.00024895,94840.0,94839.0,0.32308523]
[1736550537469,0.00024895,94840.0,94839.0,0.32708523]
[1736550538232,0.00024895,94840.0,94839.0,0.33756953]
[1736550538863,0.00024895,94840.0,94839.0,0.34256953]
[1736550539274,0.00024895,94840.0,94839.0,0.32308523]
[1736550539472,0.00024895,94840.0,94839.0,0.33208523]
[1736550539678,0.00024895,94840.0,94839.0,0.33608523]
[1736550543126,0.00024895,94840.0,94839.0,0.3356732]
[1736550547572,0.00024895,94840.0,94839.0,0.02090247]
[1736550547812,0.04714895,94840.0,94839.0,0.02090247]
[1736550548316,0.05376931,94840.0,94839.0,0.23178547]
[1736550548726,0.05376931,94840.0,94839.0,0.22778547]
[1736550549245,0.05376931,94840.0,94839.0,0.22078547]
[1736550549660,0.05376931,94840.0,94839.0,0.22378547]
[1736550549863,0.05376931,94840.0,94839.0,0.22578547]
[1736550550100,0.05376931,94840.0,94839.0,0.33008523]
[1736550550315,0.00686931,94840.0,94839.0,0.33008523]
[1736550550998,0.00024895,94840.0,94839.0,0.33008523]
[1736550574770,0.00024895,94840.0,94839.0,0.36304831]
[1736550575194,0.00024895,94840.0,94839.0,0.33008523]
[1736550575688,0.00024895,94840.0,94839.0,0.64729738]
[1736550575925,0.00024895,94840.0,94839.0,0.64729719]
[1736550576125,0.00024895,94840.0,94839.0,0.36304696]
[1736550576632,0.00024895,94840.0,94839.0,0.64729719]
[1736550577275,0.00024895,94840.0,94839.0,1.30739719]
[1736550577513,0.00024895,94840.0,94839.0,1.02314696]
[1736550577723,0.0001708,94847.0,94843.0,0.1]
[1736550577934,0.0001708,94847.0,94843.0,0.23831563]
[1736550578143,0.00010285,94844.0,94843.0,0.33726149]
[1736550578742,0.00010285,94844.0,94843.0,0.34516396]
[1736550578939,0.00010285,94844.0,94843.0,0.24516396]
[1736550579174,0.00010285,94844.0,94843.0,0.66535351]
[1736550579387,0.00010285,94844.0,94843.0,0.99645351]
[1736550579788,0.00010285,94844.0,94843.0,0.58026396]
[1736550580355,0.00010285,94844.0,94843.0,0.58926396]
[1736550581046,0.00010285,94844.0,94843.0,0.48926396]
[1736550581261,0.0001708,94855.0,94854.0,0.31085]
[1736550581473,0.0001708,94855.0,94854.0,0.41514976]
[1736550581681,0.0001708,94855.0,94854.0,0.31514976]
[1736550581886,0.0001708,94855.0,94854.0,0.35163859]
[1736550582303,0.0001708,94855.0,94854.0,0.35954106]
[1736550582513,0.0001708,94855.0,94854.0,0.36154106]
[1736550582691,0.0001708,94855.0,94854.0,0.46154106]
[1736550582911,0.0001708,94855.0,94854.0,0.46654106]
[1736550583135,0.0001708,94855.0,94854.0,0.36654106]
[1736550583657,0.00022019,94855.0,94854.0,0.36654106]
[1736550586282,0.00022019,94855.0,94854.0,0.46654106]
[1736550586524,0.00022019,94855.0,94854.0,0.36654106]
[1736550586702,0.00022019,94855.0,94854.0,0.46654106]
[1736550586837,0.00022019,94855.0,94854.0,0.49837069]
[1736550593960,0.00022019,94855.0,94854.0,0.38773]
[1736550594183,0.00022019,94855.0,94854.0,0.36654106]
[1736550596792,0.00022019,94855.0,94854.0,0.54604106]
[1736550597831,0.00022019,94855.0,94854.0,0.54404106]
[1736550598271,0.00022019,94855.0,94854.0,0.54804106]
[1736550598946,0.00022019,94855.0,94854.0,0.54304106]
[1736550599132,0.00022019,94855.0,94854.0,0.55204106]
[1736550602327,0.00022019,94855.0,94854.0,0.47254106]
[1736550604042,0.00022019,94855.0,94854.0,0.50536432]
[1736550606141,0.00022019,94855.0,94854.0,0.47254106]
[1736550606321,0.00022019,94855.0,94854.0,0.50537439]
[1736550614732,0.00022019,94855.0,94854.0,0.78887671]
[1736550615806,0.00022019,94855.0,94854.0,0.50537439]
[1736550617135,0.00022019,94855.0,94854.0,1.08517439]
[1736550617309,0.00022019,94855.0,94854.0,1.77203039]
[1736550617498,0.00022019,94855.0,94854.0,1.78324156]
[1736550617696,5.871e-05,94855.0,94854.0,1.78324156]
[1736550618103,5.871e-05,94855.0,94854.0,1.77924156]
[1736550618306,5.871e-05,94855.0,94854.0,1.78324156]
[1736550618548,0.0001708,94865.0,94855.0,0.373]
[1736550618549,5.1e-07,94856.0,94855.0,0.373]
[1736550618717,3.1e-07,94858.0,94857.0,0.45]
[1736550618946,3.1e-07,94858.0,94857.0,0.58713309]
[1736550619823,3.1e-07,94858.0,94857.0,0.59503556]
[1736550620221,0.07014791,94884.0,94883.0,0.210785]
[1736550620436,0.07014791,94884.0,94883.0,0.31508476]
[1736550620558,0.07570865,94884.0,94883.0,0.31508476]
[1736550620777,0.07570865,94884.0,94883.0,0.32298723]
[1736550621261,0.07570865,94884.0,94883.0,0.35930347]
[1736550621667,0.06921551,94884.0,94883.0,0.35930347]
[1736550622497,0.06921551,94884.0,94883.0,0.36230347]
[1736550622902,0.06912282,94884.0,94883.0,0.36230347]
[1736550625121,4.94e-05,94884.0,94883.0,0.50808723]
[1736550625329,4.94e-05,94884.0,94883.0,0.6409]
[1736550625537,5.876e-05,94885.0,94884.0,0.1]
[1736550625743,0.0005524,94885.0,94884.0,0.23816621]
[1736550625947,0.0005524,94885.0,94884.0,0.23711253]
[1736550627306,0.0005524,94885.0,94884.0,0.254015]
[1736550628272,0.0005524,94885.0,94884.0,0.258015]
[1736550628781,0.045,94909.0,94903.0,0.210741]
[1736550629013,0.045,94909.0,94887.0,0.1]
[1736550629014,0.01068647,94908.0,94905.0,0.210737]
[1736550629271,0.01068647,94908.0,94906.0,0.10429976]
[1736550629477,0.045,94909.0,94906.0,0.1217559]
[1736550630047,0.01068647,94908.0,94906.0,0.12965837]
[1736550630514,0.045,94909.0,94906.0,0.12965837]
[1736550630790,0.01068647,94908.0,94906.0,0.12965837]
[1736550630958,0.045,94909.0,94906.0,0.12965837]
[1736550631164,0.01068647,94908.0,94906.0,0.12965837]
[1736550631369,0.04504936,94909.0,94906.0,0.12965837]
[1736550631571,0.0753,94907.0,94906.0,0.12965837]
[1736550631769,0.08290613,94907.0,94906.0,0.1217559]
[1736550632569,0.08290613,94907.0,94906.0,0.1237559]
[1736550632963,0.08290613,94907.0,94906.0,0.1217559]
[1736550633188,0.08290613,94907.0,94906.0,0.1237559]
[1736550633923,0.00760613,94907.0,94906.0,0.1237559]
[1736550634151,0.04504936,94909.0,94906.0,0.1237559]
[1736550634366,4.936e-05,94909.0,94907.0,0.210732]
[1736550634795,4.936e-05,94909.0,94908.0,0.10429976]
[1736550635575,4.936e-05,94909.0,94908.0,0.11215462]
[1736550636607,0.07704936,94909.0,94908.0,0.11515462]
[1736550636833,0.13436173,94909.0,94908.0,0.11515462]
[1736550637053,0.13436173,94909.0,94908.0,0.01085486]
[1736550637508,0.13436173,94909.0,94908.0,0.01185486]
[1736550637915,0.13436173,94909.0,94908.0,0.01085486]
[1736550638317,0.13436173,94909.0,94908.0,0.003]
[1736550638977,0.13436173,94909.0,94906.0,0.01745614]
[1736550639390,0.13436173,94909.0,94908.0,0.001]
[1736550639595,0.13436173,94909.0,94906.0,0.01745614]
[1736550640035,0.13436173,94909.0,94908.0,0.001]
[1736550640679,0.13436173,94909.0,94906.0,0.01745614]
[1736550641529,0.13436173,94909.0,94906.0,0.01845614]
[1736550642586,0.14511068,94909.0,94906.0,0.01845614]
[1736550642831,0.14511068,94909.0,94906.0,0.01745614]
[1736550643196,0.14511068,94909.0,94906.0,0.01845614]
[1736550646464,0.21073,94908.0,94906.0,0.01845614]
[1736550646668,0.077,94907.0,94906.0,0.01845614]
[1736550646826,0.08464117,94907.0,94906.0,0.01845614]
[1736550647848,0.08464117,94907.0,94906.0,0.01745614]
[1736550648282,0.08564117,94907.0,94906.0,0.01745614]
[1736550650086,0.08464117,94907.0,94906.0,0.01745614]
[1736550650325,0.08564117,94907.0,94906.0,0.01745614]
[1736550650885,0.08464117,94907.0,94906.0,0.01745614]
[1736550651507,0.08564117,94907.0,94906.0,0.01745614]
[1736550651716,0.08464117,94907.0,94906.0,0.01745614]
[1736550653088,0.08564117,94907.0,94906.0,0.01745614]
[1736550653291,0.03254386,94904.0,94899.0,0.00786456]
[1736550653677,0.00763493,94903.0,94899.0,0.00786456]
[1736550653860,0.421487,94902.0,94899.0,0.00786456]
[1736550654067,0.077,94901.0,94900.0,0.00786456]
[1736550654271,0.08463743,94901.0,94900.0,0.00786456]
[1736550655364,0.210748,94900.0,94899.0,0.001]
[1736550656023,0.21838593,94900.0,94890.0,0.210769]
[1736550656207,0.21838593,94900.0,94899.0,0.001]
[1736550656354,0.21838593,94900.0,94891.0,0.10429976]
[1736550656974,0.21838593,94900.0,94891.0,0.11216432]
[1736550657364,0.21938593,94900.0,94891.0,0.11216432]
[1736550657953,0.21938593,94900.0,94892.0,0.00786456]
[1736550658160,0.21938593,94900.0,94892.0,0.11216432]
[1736550658331,0.21838593,94900.0,94892.0,0.11216432]
[1736550659122,0.21838593,94900.0,94892.0,0.10429976]
[1736550659730,0.21938593,94900.0,94892.0,0.10429976]
[1736550660214,0.21838593,94900.0,94892.0,0.10429976]
[1736550660415,0.21938593,94900.0,94892.0,0.10429976]
[1736550662564,0.21938593,94900.0,94893.0,0.00786456]
[1736550663109,0.210757,94896.0,94893.0,0.00786456]
[1736550663315,0.0471,94895.0,94893.0,0.00786456]
[1736550663735,0.00763307,94894.0,94893.0,0.00786456]
[1736550663956,0.00763307,94894.0,94883.0,0.00786456]
[1736550664174,0.00763307,94894.0,94884.0,0.10429976]
[1736550664175,0.21839407,94894.0,94884.0,0.10429976]
[1736550664412,0.210761,94894.0,94885.0,0.210781]
[1736550664607,0.00763402,94893.0,94886.0,0.10429976]
[1736550664816,0.00763402,94893.0,94886.0,0.11216432]
[1736550665020,0.0471,94895.0,94887.0,0.210777]
[1736550665238,0.00763207,94892.0,94887.0,0.210777]
[1736550665436,0.0471,94895.0,94887.0,0.210777]
[1736550665653,0.00763157,94891.0,94887.0,0.210777]
[1736550665870,0.077,94901.0,94886.0,0.11216432]
[1736550665871,0.03254386,94904.0,94890.0,0.21077]
[1736550666081,0.01076951,94895.0,94893.0,0.002]
[1736550666289,0.210741,94903.0,94893.0,0.002]
[1736550666446,0.210741,94903.0,94891.0,0.31506776]
[1736550666639,0.00763556,94902.0,94891.0,0.31506776]
[1736550667250,0.00763556,94902.0,94894.0,0.00786456]
[1736550668456,0.00763556,94902.0,94895.0,0.00786456]
[1736550669497,0.210745,94901.0,94895.0,0.00786456]
[1736550669902,0.00763457,94900.0,94896.0,0.00786456]
[1736550670966,0.00763457,94900.0,94891.0,0.31506776]
[1736550671159,0.210741,94903.0,94891.0,0.31506776]
[1736550671425,0.0076353,94899.0,94891.0,0.31506776]
[1736550671609,0.001,94902.0,94891.0,0.31506776]
[1736550671844,0.0076348,94898.0,94892.0,0.00788809]
[1736550672012,0.001,94902.0,94892.0,0.11218785]
[1736550672239,0.0076343,94897.0,94892.0,0.11218785]
[1736550672442,0.210745,94901.0,94892.0,0.11218785]
[1736550672677,0.0076338,94896.0,94892.0,0.11218785]
[1736550672922,0.0076333,94895.0,94893.0,0.00788809]
[1736550673374,0.001,94900.0,94893.0,0.00788809]
[1736550673638,0.04282791,94904.0,94894.0,0.210761]
[1736550674149,0.210741,94903.0,94894.0,0.210761]
[1736550674390,0.210741,94903.0,94894.0,0.21864909]
[1736550674567,0.210741,94903.0,94894.0,0.00788809]
[1736550674818,0.001,94900.0,94894.0,0.00788809]
[1736550675357,0.001,94900.0,94895.0,0.31505876]
[1736550675574,0.001,94900.0,94895.0,0.53370585]
[1736550675972,0.001,94900.0,94895.0,0.11218785]
[1736550676177,0.03254386,94904.0,94895.0,0.11218785]
[1736550676178,0.03254386,94904.0,94896.0,0.0775]
[1736550676379,0.001,94903.0,94902.0,0.210741]
[1736550676590,0.001,94903.0,94902.0,0.31504076]
[1736550676995,0.03254386,94904.0,94902.0,0.31504076]
[1736550677198,0.03254386,94904.0,94903.0,0.10429976]
[1736550678423,0.03254386,94904.0,94903.0,0.11218785]
[1736550679773,0.03254386,94904.0,94903.0,0.11618785]
[1736550680507,0.03254386,94904.0,94903.0,0.11718785]
[1736550684218,0.04017918,94904.0,94903.0,0.11718785]
[1736550685189,0.03254386,94904.0,94903.0,0.11718785]
[1736550685398,0.04017914,94904.0,94903.0,0.11718785]
[1736550701210,0.04017914,94904.0,94903.0,0.01288809]
[1736550701998,0.04017914,94904.0,94903.0,0.01188809]
[1736550702197,0.04117914,94904.0,94903.0,0.01188809]
[1736550702928,0.04017914,94904.0,94903.0,0.00788809]
[1736550703380,0.04017914,94904.0,94903.0,0.00888809]
[1736550704609,0.04017914,94904.0,94903.0,0.00788809]
[1736550705336,0.04117914,94904.0,94903.0,0.00788809]
[1736550705740,0.04017914,94904.0,94903.0,0.00788809]
[1736550706048,0.04117914,94904.0,94903.0,0.00788809]
[1736550707415,0.09077914,94904.0,94903.0,0.00788809]
[1736550708671,0.09077914,94904.0,94887.0,0.210775]
[1736550708879,0.210752,94899.0,94888.0,0.10429976]
[1736550709311,0.0076358,94898.0,94888.0,0.10429976]
[1736550709691,0.0076358,94898.0,94889.0,0.00790155]
[1736550709906,0.0076358,94898.0,94890.0,0.10429976]
[1736550711029,0.0076358,94898.0,94891.0,0.00790155]
[1736550711237,0.078,94897.0,94891.0,0.00790155]
[1736550711367,0.210759,94895.0,94891.0,0.00790155]
[1736550711576,0.00763648,94894.0,94891.0,0.00790155]
[1736550712340,0.00763648,94894.0,94892.0,0.00790155]
[1736550713485,0.00763648,94894.0,94893.0,0.00790155]
[1736550714927,0.00763648,94894.0,94893.0,0.00890155]
[1736550716013,0.01836883,94894.0,94893.0,0.00890155]
[1736550720231,0.01836883,94894.0,94893.0,0.001]
[1736550722698,0.01836883,94894.0,94893.0,0.00889254]
[1736550724887,0.00763648,94894.0,94893.0,0.1131923]
[1736550725095,0.21077736,94909.0,94894.0,0.0784]
[1736550725289,0.21077736,94909.0,94895.0,0.31505876]
[1736550725521,0.00762868,94908.0,94895.0,0.31505876]
[1736550726295,0.00762868,94908.0,94896.0,0.00789254]
[1736550726651,0.00762868,94908.0,94897.0,0.31505376]
[1736550727583,0.00762868,94908.0,94898.0,0.00789254]
[1736550727762,0.00762868,94908.0,94898.0,0.1121923]
[1736550728851,0.00862868,94908.0,94899.0,0.00789254]
[1736550729689,0.00862868,94908.0,94900.0,0.00789254]
[1736550730232,0.00762868,94908.0,94900.0,0.00789254]
[1736550730590,0.00862868,94908.0,94900.0,0.00789254]
[1736550730793,0.210732,94907.0,94901.0,0.00789254]
[1736550731173,0.00763406,94906.0,94901.0,0.00789254]
[1736550732011,0.00763406,94906.0,94902.0,0.00789254]
[1736550733196,0.00763406,94906.0,94903.0,0.00789254]
[1736550733897,0.00863406,94906.0,94903.0,0.00789254]
[1736550734410,0.00763406,94906.0,94903.0,0.00789254]
[1736550734681,0.00763406,94906.0,94904.0,0.00789254]
[1736550735087,0.00863406,94906.0,94904.0,0.00789254]
[1736550735491,0.00763406,94906.0,94904.0,0.00789254]
[1736550736023,0.210737,94905.0,94898.0,0.10429976]
[1736550736229,0.21837249,94905.0,94898.0,0.10429976]
[1736550737647,0.21937249,94905.0,94899.0,0.00789275]
[1736550738472,0.21837249,94905.0,94900.0,0.00789275]
[1736550738821,0.21937249,94905.0,94900.0,0.00789275]
[1736550739639,0.21937249,94905.0,94901.0,0.00789275]
[1736550740038,0.00763549,94905.0,94901.0,0.00789275]
[1736550740271,0.210732,94907.0,94901.0,0.00789275]
[1736550740480,0.007635,94904.0,94901.0,0.00789275]
[1736550740648,0.001,94905.0,94902.0,0.11219251]
[1736550740855,0.0076345,94903.0,94902.0,0.32293551]
[1736550741199,0.001,94905.0,94902.0,0.32293551]
[1736550741761,4.936e-05,94909.0,94903.0,0.00789275]
[1736550741963,4.936e-05,94909.0,94903.0,0.11219251]
[1736550742216,0.0076381,94908.0,94903.0,0.11219251]
[1736550742996,0.0076381,94908.0,94904.0,0.00789275]
[1736550744423,0.0086381,94908.0,94905.0,0.00789275]
[1736550745188,0.0076381,94908.0,94905.0,0.00789275]
[1736550745903,0.0076381,94908.0,94906.0,0.08649275]
[1736550746719,0.0549381,94908.0,94906.0,0.00789275]
[1736550746925,0.0559381,94908.0,94907.0,0.02762356]
[1736550747365,0.0549381,94908.0,94907.0,0.02762356]
[1736550747558,0.0559381,94908.0,94907.0,0.02762356]
[1736550748190,0.0549381,94908.0,94907.0,0.02762356]
[1736550748388,0.0559381,94908.0,94907.0,0.02762356]
[1736550748678,0.0559381,94908.0,94907.0,0.00789275]
[1736550748903,0.0559381,94908.0,94907.0,0.02762708]
[1736550750482,0.0086381,94908.0,94907.0,0.02762708]
[1736550760114,0.0086381,94908.0,94907.0,0.00789275]
[1736550761806,0.001,94908.0,94907.0,0.00789275]
[1736550762813,0.001,94908.0,94907.0,0.11219251]
[1736550764882,0.00863282,94908.0,94907.0,0.11219251]
[1736550781812,0.08833282,94908.0,94907.0,0.00789275]
[1736550782848,0.08733282,94908.0,94907.0,0.00789275]
[1736550783060,0.08733282,94908.0,94881.0,0.210789]
[1736550783061,0.632196,94907.0,94898.0,0.00789275]
[1736550783261,0.210732,94907.0,94898.0,0.00789275]
[1736550783467,0.21075,94899.0,94898.0,0.00789275]
[1736550783909,0.21838833,94899.0,94898.0,0.00789275]
[1736550784683,0.210767,94892.0,94882.0,0.00789275]
[1736550784889,0.210767,94892.0,94883.0,0.10429976]
[1736550785102,0.0076366,94891.0,94883.0,0.10429976]
[1736550785318,0.21077,94890.0,94883.0,0.10429976]
[1736550785541,0.0076366,94891.0,94884.0,0.00789275]
[1736550785743,0.0076361,94890.0,94885.0,0.10429976]
[1736550786061,0.210767,94892.0,94885.0,0.10429976]
[1736550786264,0.00763561,94889.0,94885.0,0.10429976]
[1736550786566,0.00763511,94888.0,94886.0,0.00789275]
[1736550786772,0.001,94891.0,94887.0,0.10429976]
[1736550786974,0.00763384,94890.0,94887.0,0.10429976]
[1736550787541,0.00763384,94890.0,94888.0,0.00789275]
[1736550787765,0.00763384,94890.0,94889.0,0.10429976]
[1736550788603,0.00763384,94890.0,94889.0,0.11219251]
[1736550788779,0.211767,94892.0,94889.0,0.11219251]
[1736550788994,0.00763384,94890.0,94889.0,0.11219251]
[1736550789164,0.210759,94895.0,94889.0,0.11219251]
[1736550789371,0.00763584,94894.0,94889.0,0.11219251]
[1736550789577,0.001,94890.0,94889.0,0.11219251]
[1736550790024,0.210759,94895.0,94889.0,0.10429976]
[1736550790386,0.0076376,94894.0,94889.0,0.10429976]
[1736550790689,0.0086376,94894.0,94889.0,0.10429976]
[1736550790974,0.0076376,94894.0,94889.0,0.10429976]
[1736550791964,0.0086376,94894.0,94889.0,0.10429976]
[1736550792491,0.0086376,94894.0,94890.0,0.00789215]
[1736550792665,0.0086376,94894.0,94890.0,0.11219191]
[1736550793028,0.0096376,94894.0,94890.0,0.11219191]
[1736550793230,0.002,94894.0,94890.0,0.11219191]
[1736550793435,0.00763284,94893.0,94890.0,0.11219191]
[1736550793910,0.00763284,94893.0,94890.0,0.10429976]
[1736550794111,0.001,94894.0,94890.0,0.10429976]
[1736550794317,0.00763234,94892.0,94890.0,0.10429976]
[1736550794493,0.01040859,94895.0,94890.0,0.10429976]
[1736550794692,0.00763184,94891.0,94890.0,0.10429976]
[1736550794900,0.210756,94897.0,94890.0,0.10429976]
[1736550795100,0.00763184,94891.0,94890.0,0.10429976]
[1736550795309,0.001,94894.0,94890.0,0.10429976]
[1736550795515,0.00763184,94891.0,94890.0,0.10429976]
[1736550795673,0.22109596,94897.0,94890.0,0.10429976]
[1736550796072,0.0076386,94896.0,94890.0,0.10429976]
[1736550796816,0.001,94895.0,94890.0,0.10429976]
[1736550797193,0.0076386,94896.0,94890.0,0.10429976]
[1736550797522,0.0086386,94896.0,94890.0,0.10429976]
[1736550797751,0.0076386,94896.0,94890.0,0.10429976]
[1736550797953,0.22109596,94897.0,94890.0,0.10429976]
[1736550798132,0.0076348,94896.0,94890.0,0.10429976]
[1736550798449,0.001,94895.0,94890.0,0.10429976]
[1736550798866,0.00762954,94894.0,94890.0,0.10429976]